bitfinex/quotes_SOLUSD_20250809
["timestamp","ask_amount","ask_price","bid_price","bid_amount"]
[1754728167713,52.42516702,181.14,181.13,4.17816265]
[1754728167912,26.28432314,181.12,181.11,0.06]
[1754728168213,29.45641322,181.12,181.11,0.06]
[1754728168403,3.17209008,181.13,181.11,0.77]
[1754728168899,3.17209008,181.12,181.11,0.77]
[1754728169224,8.69329149,181.12,181.11,0.06]
[1754728169615,8.69329149,181.12,181.11,0.77]
[1754728170311,34.69329149,181.12,181.11,0.77]
[1754728170517,31.52120141,181.12,181.11,0.77]
[1754728171823,26.0,181.13,181.11,0.77]
[1754728172398,31.5205918,181.14,181.11,0.77]
[1754728172713,5.51967765,181.17,181.13,3.17209008]
[1754728173107,5.51967765,181.17,181.14,0.71]
[1754728173419,5.51967765,181.17,181.14,3.88209008]
[1754728173721,8.69146307,181.18,181.15,0.67]
[1754728173895,26.0,181.17,181.15,0.67]
[1754728175402,5.66125615,181.19,181.16,3.17209008]
[1754728175593,5.66125615,181.19,181.17,0.67]
[1754728176826,5.51909458,181.19,181.17,0.67]
[1754728178611,5.51909458,181.19,181.16,3.17209008]
[1754728178802,5.51909458,181.19,181.18,0.67]
[1754728179014,5.51909458,181.19,181.17,0.67]
[1754728179804,5.51909458,181.19,181.18,4.1093168]
[1754728180130,5.51909458,181.19,181.18,4.10931212]
[1754728180636,6.18909458,181.19,181.18,4.10931212]
[1754728181134,5.51909458,181.19,181.18,4.10931212]
[1754728182021,5.51909458,181.19,181.18,4.77931212]
[1754728182206,26.0,181.2,181.18,4.77931212]
[1754728182403,0.17216157,181.23,181.19,7.2814022]
[1754728182602,0.17216157,181.23,181.2,4.77931212]
[1754728182807,26.0,181.22,181.2,0.67]
[1754728183208,26.0,181.22,181.21,4.10425646]
[1754728183411,26.0,181.22,181.21,4.77425646]
[1754728183604,0.03,181.23,181.21,7.94634654]
[1754728183837,3.20209008,181.23,181.22,4.10425646]
[1754728184024,0.03,181.23,181.22,4.77425646]
[1754728184234,0.03,181.23,181.22,7.94634654]
[1754728187309,0.03,181.23,181.22,4.77425646]
[1754728188309,0.03,181.23,181.22,7.94634654]
[1754728188510,0.03,181.23,181.22,4.77425646]
[1754728188737,0.03,181.23,181.22,7.94634654]
[1754728189929,0.03,181.23,181.22,4.77425646]
[1754728190239,0.03,181.23,181.22,46.70634654]
[1754728190615,0.03,181.23,181.22,48.46751828]
[1754728191945,0.03,181.23,181.22,48.44203046]
[1754728192934,0.7,181.23,181.18,89.43]
[1754728193236,0.03,181.23,181.19,47.81206013]
[1754728193439,0.03,181.23,181.2,9.01206013]
[1754728193646,0.03,181.23,181.2,0.67]
[1754728193809,0.03,181.23,181.22,4.93326182]
[1754728195433,0.03,181.23,181.21,4.93326182]
[1754728195843,0.03,181.23,181.19,39.47]
[1754728196019,0.03,181.23,181.21,4.93326182]
[1754728196920,6.21792159,181.23,181.2,4.93326182]
[1754728197126,0.67,181.22,181.19,38.76]
[1754728197336,10.48118341,181.23,181.19,38.76]
[1754728197740,0.03,181.23,181.2,4.74685536]
[1754728197948,0.03,181.23,181.2,5.60326182]
[1754728198443,5.54794688,181.23,181.2,5.60326182]
[1754728198743,31.54794688,181.23,181.2,5.60326182]
[1754728198952,26.03,181.23,181.21,4.93326182]
[1754728199149,0.03,181.23,181.2,5.60326182]
[1754728199745,0.03,181.23,181.2,0.67]
[1754728199946,0.03,181.23,181.22,4.93326182]
[1754728200126,0.03,181.23,181.22,47.86839113]
[1754728200330,0.1,181.24,181.23,15.10621557]
[1754728200536,0.03,181.25,181.23,113.4846067]
[1754728200733,0.03,181.25,181.24,24.7846067]
[1754728201726,0.03,181.25,181.24,4.74512931]
[1754728201945,0.03,181.25,181.24,9.67296887]
[1754728203346,0.03,181.25,181.24,24.77918444]
[1754728203554,0.03,181.25,181.24,113.47918444]
[1754728204630,0.03,181.25,181.24,108.54592262]
[1754728204845,0.03,181.25,181.24,113.47918444]
[1754728205234,0.03,181.25,181.24,137.27296887]
[1754728206243,0.03,181.25,181.24,136.60296887]
[1754728206836,0.03,181.25,181.24,131.66970705]
[1754728207253,0.03,181.25,181.24,136.60296887]
[1754728207430,0.03,181.25,181.24,131.66970705]
[1754728207631,0.03,181.25,181.24,136.60296887]
[1754728208361,0.03,181.25,181.24,131.66970705]
[1754728208669,0.69,181.25,181.24,127.6]
[1754728209362,0.69,181.25,181.24,38.9]
[1754728210135,11.14050319,181.25,181.24,38.9]
[1754728210835,11.14050319,181.25,181.19,0.65]
[1754728210836,0.28432314,181.24,181.18,0.06]
[1754728211035,4.93326182,181.2,181.19,38.94]
[1754728211241,0.66,181.2,181.19,38.94]
[1754728211453,0.66,181.22,181.19,43.01475302]
[1754728211656,0.66,181.22,181.2,4.07475302]
[1754728211958,5.59326182,181.22,181.19,38.94]
[1754728212262,5.51845924,181.21,181.2,4.07496596]
[1754728213656,6.17845924,181.21,181.19,38.94]
[1754728213878,6.17845924,181.21,181.2,4.07889682]
[1754728214056,11.11172106,181.21,181.2,4.07889682]
[1754728214257,11.11172106,181.21,181.19,38.94]
[1754728215540,6.17845924,181.21,181.19,38.94]
[1754728216467,6.17845924,181.21,181.2,4.08510713]
[1754728216645,11.11172106,181.21,181.2,4.08510713]
[1754728217445,11.11172106,181.21,181.19,38.94]
[1754728217647,0.66,181.2,181.19,38.94]
[1754728217846,0.66,181.2,181.19,43.02713611]
[1754728218663,11.11202561,181.2,181.19,43.02713611]
[1754728218864,11.39634875,181.2,181.18,0.06]
[1754728219071,5.59326182,181.19,181.18,0.06]
[1754728219365,5.59326182,181.19,181.18,4.14967415]
[1754728219568,5.59326182,181.19,181.18,0.06]
[1754728220568,11.1123302,181.19,181.18,0.06]
[1754728221350,6.17906838,181.19,181.18,0.06]
[1754728221545,11.1123302,181.19,181.18,0.06]
[1754728221848,6.46339152,181.19,181.18,0.06]
[1754728222276,11.39665334,181.19,181.18,0.06]
[1754728223069,5.51906838,181.19,181.18,0.06]
[1754728223254,5.51906838,181.19,181.18,4.1511575]
[1754728225260,6.17906838,181.19,181.18,4.1511575]
[1754728225671,6.17906838,181.19,181.18,0.06]
[1754728230160,5.51906838,181.19,181.18,4.14954713]
[1754728230484,5.51906838,181.19,181.18,0.06]
[1754728231897,5.51906838,181.19,181.18,4.79869888]
[1754728232179,5.51813768,181.23,181.18,9.7319607]
[1754728232492,5.51813768,181.23,181.2,4.93326182]
[1754728232780,5.51813768,181.23,181.21,9.6719607]
[1754728232983,5.51813768,181.23,181.22,38.96]
[1754728233567,5.51754579,181.24,181.22,38.96]
[1754728233779,11.17080761,181.24,181.22,38.96]
[1754728233982,5.65326182,181.23,181.22,38.96]
[1754728235276,11.17111206,181.23,181.22,38.96]
[1754728235884,10.45111206,181.23,181.22,38.96]
[1754728236071,11.17111206,181.23,181.22,38.96]
[1754728236474,6.23785024,181.23,181.22,38.96]
[1754728236671,11.17111206,181.23,181.22,38.96]
[1754728237992,10.45111206,181.23,181.22,38.96]
[1754728238382,11.17111206,181.23,181.22,38.96]
[1754728239192,6.23785024,181.23,181.22,38.96]
[1754728239387,11.17111206,181.23,181.22,38.96]
[1754728239580,6.23785024,181.23,181.22,38.96]
[1754728239766,10.45111206,181.23,181.22,38.96]
[1754728240401,11.17111206,181.23,181.22,38.96]
[1754728241267,11.17111206,181.23,181.19,0.73]
[1754728241470,5.51845924,181.21,181.2,43.03074244]
[1754728243087,6.23845924,181.21,181.2,43.03074244]
[1754728243294,10.45139941,181.23,181.2,43.70074244]
[1754728243503,10.45139941,181.23,181.21,4.09074244]
[1754728243676,10.45139941,181.23,181.22,4.09074244]
[1754728244492,5.51754579,181.24,181.22,4.09074244]
[1754728244693,4.93326182,181.23,181.2,39.61]
[1754728244875,4.93326182,181.23,181.21,4.08928895]
[1754728245075,4.93326182,181.23,181.22,4.08928895]
[1754728245685,10.45111206,181.23,181.22,4.08928895]
[1754728247178,11.17111206,181.23,181.19,0.06]
[1754728247478,11.17111206,181.23,181.2,42.97192362]
[1754728247677,10.45111206,181.23,181.21,4.09192362]
[1754728247879,10.45111206,181.23,181.2,38.88]
[1754728247880,5.65326182,181.22,181.2,38.88]
[1754728248087,5.51785024,181.23,181.2,38.88]
[1754728248088,4.93326182,181.21,181.2,38.88]
[1754728248294,4.93326182,181.22,181.2,42.97355482]
[1754728248498,4.93326182,181.22,181.21,4.09319283]
[1754728249017,5.51845924,181.21,181.19,38.94]
[1754728249297,5.51845924,181.21,181.2,4.09309167]
[1754728253401,6.23845924,181.21,181.2,4.09309167]
[1754728253697,11.17172106,181.21,181.2,4.09309167]
[1754728253899,5.51845924,181.21,181.2,4.09309167]
[1754728254607,10.45172106,181.21,181.2,4.09309167]
[1754728254986,5.51845924,181.21,181.2,4.09309167]
[1754728255182,10.45172106,181.21,181.2,4.09309167]
[1754728255582,5.51845924,181.21,181.2,4.09309167]
[1754728255901,11.17172106,181.21,181.2,4.09309167]
[1754728260606,10.45172106,181.21,181.2,4.09309167]
[1754728261611,11.17172106,181.21,181.2,4.09309167]
[1754728264612,6.23845924,181.21,181.2,4.09309167]
[1754728264987,11.17172106,181.21,181.2,4.09309167]
[1754728266003,11.17172106,181.21,181.2,4.104383]
[1754728267890,11.17172106,181.21,181.2,42.924383]
[1754728268797,9.39862932,181.21,181.2,42.924383]
[1754728268996,8.67862932,181.21,181.2,42.92584547]
[1754728270206,8.67862932,181.21,181.2,42.90584547]
[1754728271327,8.67862932,181.21,181.2,4.10584547]
[1754728271531,8.67862932,181.21,181.2,42.90584547]
[1754728271830,8.67862932,181.21,181.2,38.8]
[1754728272022,8.67862932,181.21,181.2,42.90606217]
[1754728272698,8.67862932,181.21,181.2,4.10606217]
[1754728272903,8.67862932,181.21,181.2,42.88606217]
[1754728273330,5.51845924,181.21,181.2,42.88606217]
[1754728273626,8.67862932,181.21,181.2,42.88606217]
[1754728275325,5.51845924,181.21,181.2,42.88606217]
[1754728275626,8.67862932,181.21,181.2,42.88606217]
[1754728276605,9.39862932,181.21,181.2,42.88606217]
[1754728276937,9.39862932,181.21,181.19,0.06]
[1754728277231,3.88017008,181.2,181.19,0.06]
[1754728277599,3.30233165,181.2,181.19,0.06]
[1754728277826,35.54109544,181.2,181.19,0.06]
[1754728278026,52.11888644,181.2,181.19,0.06]
[1754728284826,51.97672487,181.2,181.18,0.06]
[1754728285031,3.88017008,181.19,181.18,0.06]
[1754728285342,26.0,181.18,181.17,0.06]
[1754728285518,30.02233165,181.18,181.17,0.06]
[1754728285913,32.23306965,181.18,181.17,0.06]
[1754728286331,37.75244264,181.18,181.17,0.06]
[1754728286533,33.73011099,181.18,181.17,0.06]
[1754728286723,33.73011099,181.18,181.17,0.77]
[1754728286724,31.51937299,181.18,181.17,0.77]
[1754728287036,34.67954307,181.18,181.17,0.06]
[1754728287231,35.54170464,181.18,181.17,0.06]
[1754728287611,37.75244364,181.18,181.17,0.06]
[1754728289634,37.61028207,181.18,181.16,0.06]
[1754728289833,3.88017008,181.17,181.16,0.06]
[1754728290342,6.09103108,181.17,181.16,0.06]
[1754728290936,34.68045713,181.15,181.14,0.06]
[1754728291454,35.40045713,181.15,181.14,0.06]
[1754728291735,37.61144013,181.15,181.14,0.06]
[1754728293335,37.0336017,181.15,181.14,0.06]
[1754728294529,11.0336017,181.15,181.14,0.06]
[1754728294721,37.0336017,181.15,181.14,0.77]
[1754728295328,34.68045713,181.15,181.14,4.86530748]
[1754728297551,8.68045713,181.15,181.14,4.86530748]
[1754728298440,8.68045713,181.15,181.14,4.15530748]
[1754728298642,9.40045713,181.15,181.14,0.06]
[1754728300140,35.40045713,181.15,181.14,0.06]
[1754728300534,37.61131813,181.15,181.14,0.06]
[1754728301050,35.40045713,181.15,181.14,0.06]
[1754728303362,31.52028705,181.15,181.14,0.06]
[1754728303531,34.68045713,181.15,181.14,4.15696489]
[1754728305365,34.68045713,181.15,181.14,0.06]
[1754728305664,0.03,181.16,181.14,4.86721425]
[1754728305846,0.03,181.16,181.15,4.09721425]
[1754728306052,0.03,181.16,181.15,4.80721425]
[1754728306470,0.03,181.16,181.15,7.96738433]
[1754728307152,0.03,181.16,181.15,7.96348636]
[1754728307352,0.03,181.16,181.15,4.80331628]
[1754728307555,0.03,181.16,181.15,7.96348636]
[1754728308711,0.03,181.16,181.15,9.740215]
[1754728311188,0.03,181.16,181.15,4.80331628]
[1754728311391,0.03,181.16,181.15,9.740215]
[1754728314794,0.03,181.16,181.15,15.26050205]
[1754728315571,0.03,181.16,181.15,9.740215]
[1754728316789,0.03,181.16,181.15,15.26050205]
[1754728318201,0.03,181.16,181.15,10.32360333]
[1754728318392,0.03,181.16,181.15,15.26050205]
[1754728319016,0.03,181.16,181.15,5.64689872]
[1754728319211,0.03,181.16,181.15,9.73920793]
[1754728321205,0.03,181.16,181.15,9.73944009]
[1754728321708,0.03,181.16,181.15,98.43944009]
[1754728322686,0.03,181.16,181.15,98.49944009]
[1754728323718,0.03,181.16,181.15,92.85254137]
[1754728323719,0.69,181.16,181.15,92.85254137]
[1754728324183,5.62689872,181.16,181.15,92.85254137]
[1754728325213,11.14688105,181.16,181.15,92.85254137]
[1754728326701,6.20998233,181.16,181.15,92.85254137]
[1754728327805,6.20998233,181.16,181.15,4.15254137]
[1754728335813,6.20998233,181.16,181.15,4.15781436]
[1754728336904,0.03,181.16,181.15,4.15781436]
[1754728337925,0.69,181.16,181.15,4.15781436]
[1754728338225,6.20998233,181.16,181.15,4.15781436]
[1754728341739,6.20998233,181.16,181.15,4.15788815]
[1754728342234,9.3714666,181.16,181.15,4.15788815]
[1754728344428,6.20998233,181.16,181.15,4.15788815]
[1754728345930,9.3714666,181.16,181.15,4.15788815]
[1754728346128,6.20998233,181.16,181.15,4.15788815]
[1754728347542,6.20998233,181.16,181.15,4.16019182]
[1754728348144,9.3714666,181.16,181.15,4.16019182]
[1754728352155,6.20998233,181.16,181.15,4.16019182]
[1754728352368,9.3714666,181.16,181.15,4.16019182]
[1754728353548,6.20998233,181.16,181.15,4.16019182]
[1754728353722,5.54998233,181.16,181.15,4.16019182]
[1754728354349,6.22998233,181.16,181.15,4.16019182]
[1754728356438,6.22998233,181.16,181.15,4.16135153]
[1754728364951,0.03,181.16,181.15,7.9928358]
[1754728365162,0.03,181.16,181.15,7.99489229]
[1754728367360,0.03,181.16,181.15,4.16340802]
[1754728367758,0.03,181.16,181.15,45.92489229]
[1754728368058,0.03,181.16,181.15,46.59489229]
[1754728368852,0.03,181.16,181.15,43.43340802]
[1754728369046,0.03,181.16,181.15,46.59489229]
[1754728370331,0.03,181.16,181.15,43.43340802]
[1754728372951,0.03,181.16,181.15,46.59489229]
[1754728373367,0.03,181.16,181.15,43.43340802]
[1754728374664,0.03,181.16,181.15,42.76340802]
[1754728374840,0.03,181.16,181.15,43.43340802]
[1754728375168,0.03,181.16,181.15,46.59489229]
[1754728376065,0.03,181.16,181.15,43.43340802]
[1754728376379,0.03,181.16,181.15,46.59489229]
[1754728380277,0.03,181.16,181.15,52.11517934]
[1754728381978,0.03,181.18,181.16,0.501224]
[1754728382186,0.03,181.18,181.17,45.86489229]
[1754728384870,0.03,181.18,181.17,45.85908538]
[1754728387588,0.03,181.18,181.17,42.69760111]
[1754728387893,0.69,181.18,181.17,42.69760111]
[1754728388496,6.20937299,181.18,181.17,42.67760111]
[1754728391272,6.20937299,181.18,181.17,4.09760111]
[1754728391588,6.20937299,181.18,181.17,42.67760111]
[1754728393978,5.54937299,181.18,181.17,42.67760111]
[1754728396014,0.69,181.18,181.17,42.67760111]
[1754728398380,6.20937299,181.18,181.17,42.67760111]
[1754728399796,5.54937299,181.18,181.17,42.67760111]
[1754728400511,0.03,181.18,181.17,42.67760111]
[1754728400715,0.03,181.18,181.17,46.49908538]
[1754728404604,0.03,181.18,181.17,45.83908538]
[1754728405511,0.03,181.18,181.17,42.67760111]
[1754728405719,0.69,181.18,181.17,42.67760111]
[1754728405912,0.69,181.18,181.17,45.83908538]
[1754728406087,0.03,181.18,181.17,45.83908538]
[1754728406511,0.03,181.18,181.17,46.49908538]
[1754728408017,0.03,181.18,181.17,7.91908538]
[1754728408199,0.03,181.18,181.17,46.49908538]
[1754728408386,0.03,181.18,181.17,42.40148427]
[1754728408584,0.03,181.18,181.17,45.84526601]
[1754728408804,0.03,181.18,181.17,7.26526601]
[1754728409009,0.03,181.18,181.17,45.84526601]
[1754728410113,0.03,181.18,181.17,43.34378174]
[1754728410311,0.03,181.18,181.17,46.50526601]
[1754728411094,0.03,181.18,181.17,43.34378174]
[1754728411721,0.03,181.18,181.17,46.50526601]
[1754728413415,0.03,181.18,181.17,59.15120309]
[1754728413813,0.03,181.18,181.17,46.50526601]
[1754728416520,0.03,181.18,181.17,135.20526601]
[1754728417517,0.03,181.18,181.17,135.20526305]
[1754728417834,0.03,181.18,181.17,132.04377878]
[1754728418027,0.72,181.18,181.17,134.54526305]
[1754728419023,0.72,181.18,181.17,131.38377878]
[1754728419226,0.72,181.18,181.17,134.54526305]
[1754728420334,0.72,181.18,181.17,131.38377878]
[1754728420538,0.72,181.18,181.17,134.54526305]
[1754728421254,0.72,181.18,181.17,131.38377878]
[1754728421426,0.72,181.18,181.17,134.54526305]
[1754728421828,6.23937299,181.18,181.17,131.38377878]
[1754728422153,6.23937299,181.18,181.17,134.54526305]
[1754728422349,6.23937299,181.18,181.17,45.84526305]
[1754728422935,6.23937299,181.18,181.17,7.26526305]
[1754728423126,6.23937299,181.18,181.17,45.82526305]
[1754728425264,5.54937299,181.18,181.17,45.82526305]
[1754728425423,0.03,181.18,181.17,45.82526305]
[1754728425753,0.03,181.18,181.17,42.66377878]
[1754728425927,5.54937299,181.18,181.17,45.82526305]
[1754728426646,6.23937299,181.18,181.17,4.10377878]
[1754728426852,9.40085726,181.18,181.17,42.66377878]
[1754728427036,14.95023026,181.18,181.17,4.10377878]
[1754728427838,11.78874599,181.18,181.17,4.10377878]
[1754728429140,14.95023026,181.18,181.17,4.10377878]
[1754728429848,9.40085726,181.18,181.17,4.10377878]
[1754728430367,6.23937299,181.18,181.17,4.10377878]
[1754728433149,9.40085726,181.18,181.17,4.10377878]
[1754728433946,6.23937299,181.18,181.17,4.10377878]
[1754728434139,9.40085726,181.18,181.17,4.10377878]
[1754728435163,9.40085726,181.18,181.17,4.10750131]
[1754728435968,8.89974326,181.18,181.17,4.10750131]
[1754728439256,8.89974326,181.18,181.16,0.06]
[1754728439449,0.69,181.17,181.16,0.06]
[1754728439645,3.85148427,181.17,181.16,4.16602904]
[1754728439848,3.16148427,181.17,181.16,4.16602904]
[1754728440058,3.85148427,181.17,181.16,4.16602904]
[1754728440362,26.0,181.16,181.15,0.06]
[1754728440560,29.85148427,181.16,181.15,0.06]
[1754728440964,26.0,181.16,181.15,0.06]
[1754728441165,34.6814666,181.16,181.15,0.06]
[1754728441762,31.51998233,181.16,181.15,0.06]
[1754728442964,35.3714666,181.16,181.15,0.06]
[1754728447853,32.20998233,181.16,181.15,0.06]
[1754728448167,35.3714666,181.16,181.15,0.06]
[1754728448541,32.20998233,181.16,181.15,0.06]
[1754728448741,35.3714666,181.16,181.15,0.06]
[1754728451772,31.51998233,181.16,181.15,0.06]
[1754728452876,32.21998233,181.16,181.15,0.06]
[1754728453052,35.3814666,181.16,181.15,0.06]
[1754728453774,35.66578974,181.16,181.15,0.06]
[1754728454071,37.87689474,181.16,181.15,0.06]
[1754728455873,34.71541047,181.16,181.15,0.06]
[1754728456085,37.87689474,181.16,181.15,0.06]
[1754728460149,34.71541047,181.16,181.15,0.06]
[1754728460359,37.87689474,181.16,181.15,0.06]
[1754728462978,34.71541047,181.16,181.15,0.06]
[1754728463153,37.87689474,181.16,181.15,0.06]
[1754728463656,52.98311031,181.16,181.14,0.06]
[1754728463954,3.86148427,181.15,181.14,0.06]
[1754728464154,42.42148427,181.15,181.14,0.06]
[1754728464352,44.63283327,181.15,181.14,0.06]
[1754728464773,46.41416903,181.15,181.14,0.06]
[1754728465683,51.93445608,181.15,181.14,0.06]
[1754728468859,51.23445608,181.15,181.14,0.06]
[1754728469280,51.93445608,181.15,181.14,0.06]
[1754728469963,13.37445608,181.15,181.14,0.06]
[1754728470868,7.73163605,181.15,181.14,0.75]
[1754728471068,5.52028705,181.15,181.14,4.85609306]
[1754728472293,0.03,181.18,181.14,9.79891309]
[1754728472580,0.03,181.18,181.17,4.94282003]
[1754728472781,0.03,181.18,181.17,9.04891309]
[1754728473073,0.03,181.18,181.17,9.73891309]
[1754728481473,0.03,181.18,181.17,48.27891309]
[1754728486393,0.03,181.18,181.17,74.3995941]
[1754728490300,0.03,181.18,181.17,163.0995941]
[1754728490601,0.03,181.18,181.17,162.54762634]
[1754728491196,0.03,181.18,181.17,162.52373408]
[1754728493106,0.03,181.18,181.17,73.82373408]
[1754728495384,0.03,181.18,181.17,73.82028708]
[1754728495701,0.03,181.18,181.17,74.37225484]
[1754728495994,0.03,181.18,181.17,74.37236245]
[1754728496390,0.03,181.18,181.17,163.07236245]
[1754728496580,0.03,181.18,181.17,162.52039469]
[1754728499007,0.03,181.18,181.17,161.83039469]
[1754728499311,0.03,181.18,181.17,162.49039469]
[1754728500294,0.71,181.18,181.17,97.72168144]
[1754728500493,0.71,181.18,181.17,136.22168144]
[1754728500808,0.03,181.18,181.17,136.22168144]
[1754728500994,0.03,181.18,181.17,136.88168144]
[1754728501816,0.03,181.18,181.17,136.22168144]
[1754728502201,0.03,181.18,181.17,47.52168144]
[1754728506497,0.71,181.18,181.17,47.52168144]
[1754728509793,0.71,181.18,181.17,47.52665762]
[1754728510189,0.03,181.18,181.17,47.52665762]
[1754728510448,0.03,181.18,181.17,68.27569322]
[1754728510638,0.03,181.18,181.17,64.46169857]
[1754728510794,0.03,181.18,181.17,74.34733863]
[1754728511899,0.03,181.18,181.17,163.04733863]
[1754728512101,0.03,181.18,181.17,162.49537087]
[1754728512694,0.03,181.18,181.17,162.49811972]
[1754728513225,0.03,181.2,181.19,5.51906838]
[1754728513408,0.03,181.2,181.19,167.74847485]
[1754728515522,0.03,181.2,181.19,167.75596051]
[1754728516238,0.03,181.2,181.19,168.45596051]
[1754728518541,0.03,181.22,181.21,4.94282003]
[1754728518737,0.03,181.22,181.21,47.53689213]
[1754728519719,0.03,181.22,181.21,48.23689213]
[1754728520527,0.03,181.22,181.21,53.75535137]
[1754728522653,0.03,181.22,181.21,68.86156694]
[1754728522833,0.03,181.22,181.21,157.56156694]
[1754728523218,0.03,181.22,181.21,157.84589008]
[1754728524539,0.06941,181.24,181.22,15.10621557]
[1754728524737,0.06941,181.24,181.23,68.14095794]
[1754728525824,0.06941,181.24,181.23,69.39274296]
[1754728527328,0.06941,181.24,181.23,158.09274296]
[1754728527653,0.06941,181.24,181.23,157.54095794]
[1754728528247,0.03,181.26,181.25,0.28432314]
[1754728528448,0.03,181.26,181.25,53.29575943]
[1754728528626,0.03,181.26,181.25,53.99575943]
[1754728528827,0.03,181.26,181.25,49.0529394]
[1754728529027,0.03,181.26,181.25,10.5729394]
[1754728529254,0.03,181.26,181.25,48.3529394]
[1754728529547,0.03,181.26,181.25,10.5729394]
[1754728529747,0.03,181.26,181.25,49.0529394]
[1754728530258,0.03,181.26,181.25,54.57018077]
[1754728531332,0.03,181.26,181.25,53.87018077]
[1754728533030,0.03,181.26,181.25,49.77610867]
[1754728533340,0.03,181.26,181.25,54.55912766]
[1754728534231,0.03,181.26,181.25,59.50194769]
[1754728534831,0.03,181.26,181.25,148.20194769]
[1754728535030,0.03,181.26,181.25,147.65022356]
[1754728537333,0.03,181.26,181.25,173.65022356]
[1754728538433,0.03,181.26,181.25,173.63022356]
[1754728538633,0.03,181.26,181.25,179.5186638]
[1754728540259,0.03,181.26,181.25,194.62487937]
[1754728540497,0.72,181.31,181.29,26.0]
[1754728540677,0.72,181.31,181.3,45.69783505]
[1754728540961,0.03,181.32,181.3,46.39783505]
[1754728541262,0.03,181.32,181.31,7.23783505]
[1754728541634,0.75,181.32,181.31,7.23783505]
[1754728541842,0.75,181.32,181.31,3.15481606]
[1754728542043,0.75,181.32,181.31,7.22925471]
[1754728543037,0.75,181.32,181.31,45.68925471]
[1754728543766,0.75,181.32,181.31,60.79547028]
[1754728545162,0.75,181.32,181.31,22.33547028]
[1754728545375,0.75,181.32,181.31,60.79547028]
[1754728545664,0.03,181.32,181.31,60.79547028]
[1754728546343,0.75,181.32,181.31,60.79547028]
[1754728546543,0.75,181.32,181.31,152.29953003]
[1754728547465,0.03,181.32,181.31,152.29953003]
[1754728547773,0.03,181.32,181.31,152.99613413]
[1754728547988,0.03,181.32,181.31,152.29613413]
[1754728548750,0.75,181.32,181.31,152.29613413]
[1754728549670,0.03,181.32,181.31,152.29613413]
[1754728551268,0.03,181.32,181.31,158.51154971]
[1754728551573,0.03,181.32,181.31,157.81154971]
[1754728552570,0.03,181.32,181.31,158.51154971]
[1754728553064,0.03,181.32,181.31,157.81154971]
[1754728554076,0.03,181.32,181.31,158.51154971]
[1754728554876,0.03,181.32,181.31,158.79587285]
[1754728555059,0.1,181.35,181.34,41.10621557]
[1754728555380,0.1,181.35,181.34,188.09133862]
[1754728555964,0.1,181.35,181.34,175.47207438]
[1754728556277,0.82,181.35,181.34,175.47207438]
[1754728556875,0.82,181.35,181.34,172.31725832]
[1754728557055,0.82,181.35,181.34,175.47207438]
[1754728557249,0.1,181.35,181.34,180.98657752]
[1754728557590,0.1,181.35,181.34,194.5901649]
[1754728558353,0.1,181.37,181.36,3.15481606]
[1754728558557,0.1,181.37,181.36,45.95018195]
[1754728558757,0.1,181.37,181.36,7.51018195]
[1754728558980,0.1,181.37,181.36,45.95018195]
[1754728559564,0.1,181.37,181.36,134.65018195]
[1754728559765,0.1,181.37,181.36,135.35018195]
[1754728560172,0.1,181.37,181.36,140.86407696]
[1754728562259,0.1,181.37,181.36,155.97029253]
[1754728563289,0.1,181.37,181.36,158.17725053]
[1754728568163,0.1,181.37,181.36,119.73725053]
[1754728568363,0.1,181.37,181.36,158.15725053]
[1754728569662,0.1,181.37,181.36,119.73725053]
[1754728569868,0.1,181.37,181.36,158.15725053]
[1754728570068,0.03,181.39,181.38,26.0]
[1754728570279,0.03,181.39,181.38,175.45207438]
[1754728570977,0.69,181.39,181.38,175.45207438]
[1754728571680,0.69,181.39,181.38,111.03207438]